Cogmind - Beta 15 @@@ ROGUE MODE // 2025.05.17 @ 18:30:58 Player: Cheeriohz Result: Destroyed by 6S-605(R) with Subdweller Laser Performance ------------- Evolutions (0) 0 Regions Visited (2) 400 Robots Destroyed (17) 85 Value Destroyed (338) 338 Prototype IDs (2) 40 Alien Tech Used (0) 0 Bonus (0) 0 TOTAL SCORE: 863 Bonus ------- None Cogmind --------- Core Integrity 0/250 Matter 236/300 Energy 249/250 System Corruption 4% Temperature Cool (6) Movement Treading (320) Ox2 Location -10/Subcaves Parts ------- > --- POWER (1) -------- Ion Engine > --- PROPULSION (2) --- Light Treads > --- UTILITY (2) ------ High-capacity Storage Unit Structural Scanner > --- WEAPON (2) ------- Assault Rifle > --- INVENTORY (20) --- High-capacity Battery (250) Medium Matter Pod (100) Improved Terrain Scanner Seismic Detector Light Armor Plating Light Armor Plating Grenade Launcher Rocket Launcher Rocket Launcher Peak State ------------ > --- POWER ------------ Ion Engine > --- PROPULSION ------- Wheel Compact Wheel > --- UTILITY ---------- Small Storage Unit Seismic Detector > --- WEAPON ----------- Particle Gun Assault Rifle > --- INVENTORY -------- Light Treads Light Treads Structural Scanner Improved Terrain Scanner Assault Rifle Grenade Launcher Rocket Launcher Rocket Launcher [Rating: 9] Favorites ----------- Power Ion Engine Engine Ion Engine Propulsion Compact Wheel Treads Light Treads Leg Aluminum Leg Wheel Compact Wheel Utility Seismic Detector Device Seismic Detector Storage High-capacity Storage Unit Weapon Assault Rifle Energy Gun Particle Gun Ballistic Gun Assault Rifle Build | -11 -10 -10 ------- Run | Yrd Mat Sub Slots Evolved . | . . . Power . | . . . Propulsion . | . . . Utility . | . . . Weapon . | . . . Parts Attached 11 | 1 7 3 Power 1 | . 1 . Engine 1 | . 1 . Core . | . . . Reactor . | . . . Propulsion 5 | . 3 2 Treads 2 | . . 2 Leg . | . . . Wheel 3 | . 3 . Hover . | . . . Flight . | . . . Utility 3 | 1 1 1 Device 2 | 1 . 1 Storage 1 | . 1 . Processor . | . . . Hackware . | . . . Protection . | . . . Artifact . | . . . Weapon 2 | . 2 . Energy Gun 1 | . 1 . Energy Cannon . | . . . Ballistic Gun 1 | . 1 . Ballistic Cannon . | . . . Launcher . | . . . Special Weapon . | . . . Impact Weapon . | . . . Slashing Weapon . | . . . Piercing Weapon . | . . . Special Melee Weapon . | . . . Unidentified Prototypes . | . . . Parts Lost 5 | . 2 3 Power 1 | . 1 . Propulsion 3 | . 1 2 Utility . | . . . Weapon 1 | . . 1 Highest Loss Streak 2 | . 2 2 To Critical Strikes . | . . . Average Backups 8 | 6 8 9 Power . | 1 . . Propulsion 2 | 4 2 . Utility 2 | . 2 6 Weapon 3 | 1 3 3 Tool/Special . | . . . Unused Backups 13 | . 5 8 Power . | . . . Propulsion 4 | . 4 . Utility 6 | . 1 5 Weapon 3 | . . 3 Tool/Special . | . . . Average Slot Usage (%) 95 | . 95 97 Engine 13 | . 13 14 Treads 2 | . . 16 Wheel 23 | . 25 10 Device 14 | . 14 14 Storage 14 | . 14 14 Energy Gun 11 | . 11 12 Ballistic Gun 14 | . 14 14 Peak Build Rating 9 | 7 9 9 Average Rating 8 | 6 8 8 On Entrance 7 | 6 7 9 Naked Turns . | . . . Heaviest Build 51 | 15 51 51 Greatest Support 40 | 20 26 40 Greatest Overweight (x) 3 | . 3 1 Average Overweight (x) . | . . 1 Largest Inventory Capacity 20 | 8 20 20 Average Capacity 15 | 8 15 20 Most Carried 12 | 7 12 11 Average Carried 8 | 6 8 9 Final Capacity 20 | 8 20 20 Final Carried 11 | 7 11 9 Class Distribution -------------------- 70% | Mutant 29% | Scavenger-Mutant Dominant Class ---------------- Mutant | -10/Materials Mutant | -10/Subcaves Resources | -11 -10 -10 ----------- Run | Yrd Mat Sub Matter Collected 429 | 255 174 . Remotely . | . . . Salvage Created 514 | 110 352 52 Parts 45 | 11 33 1 Haulers Intercepted . | . . . Recyclers Shooed 1 | . 1 . Parts Field Recycled . | . . . Retrieved Matter . | . . . Parts Self-Destructed . | . . . Prevented . | . . . Kills | -11 -10 -10 ------- Run | Yrd Mat Sub Combat Hostiles Destroyed 13 | . 12 1 Guns 13 | . 12 1 Classes Destroyed 6 | 2 3 1 Worker 1 | . 1 . Tunneler 2 | 2 . . Recycler 1 | 1 . . Swarmer 6 | . 6 . Grunt 6 | . 6 . Subdweller 1 | . . 1 Best Kill Streak 6 | 1 6 1 Combat Bots Only 6 | . 6 1 Max Kills in Single Turn 1 | 1 1 1 Gunslinging . | . . . Exploded . | . . . Melee . | . . . Uniques/NPCs Destroyed . | . . . Combat | -11 -10 -10 -------- Run | Yrd Mat Sub Hostile Shots Fired 86 | . 50 36 Missed 28 | . 16 12 Hits 58 | . 34 24 Projectile 58 | . 34 24 Critical Strikes 1 | . . 1 Damage Taken 953 | . 374 579 Core 258 | . 85 173 Absorbed by Shields . | . . . Regen/Repaired (Parts) 84 | . 84 . Core Remaining (%) 100 | 100 . . Volleys Fired 51 | 9 29 13 Largest 2 | 2 2 2 Hottest 85 | 40 85 85 Shots Fired 96 | 18 58 20 Gun 96 | 18 58 20 Cannon . | . . . Launcher . | . . . Special . | . . . Kinetic 70 | 18 39 13 Thermal 26 | . 19 7 Explosive . | . . . Electromagnetic . | . . . Robot Hit Streak 21 | 4 8 21 Robot Miss Streak 3 | 2 3 . Penetration Max . | . . . Secondary Targets 1 | . 1 . Max Gunslinging Chain 1 | . 1 . Shots Hit Robots 68 | 12 36 20 Core Hits 26 | 4 19 3 Critical Kills . | . . . Critical Parts Destroyed . | . . . Critical Strikes . | . . . Melee Attacks . | . . . Impact . | . . . Slashing . | . . . Piercing . | . . . Sneak Attacks . | . . . Combat Hostiles . | . . . Follow-up Attacks . | . . . Damage Inflicted 816 | 173 480 163 Guns 807 | 173 471 163 Cannons . | . . . Explosions . | . . . Melee . | . . . Ramming 9 | . 9 . Kinetic 607 | 173 319 115 Thermal 200 | . 152 48 Explosive . | . . . Electromagnetic . | . . . Impact . | . . . Slashing . | . . . Piercing . | . . . Highest Corruption 4 | . 4 4 Average Corruption 3 | . 3 4 Corruption Purged . | . . . Corruption Blocked . | . . . Effects 4 | . 2 2 Message Errors 1 | . . 1 Heat Flow Errors 1 | . 1 . Energy Discharges 1 | . 1 . Data Loss (major) 1 | . . 1 Overload Shots . | . . . Overflow Damage . | . . . Projectiles . | . . . Explosions . | . . . Melee . | . . . Knockbacks . | . . . Impact . | . . . Kinetic . | . . . Secondary . | . . . Self-Inflicted Damage 4 | . 4 . Shots . | . . . Rammed 1 | . 1 . Targets Rammed 1 | . 1 . Kicked . | . . . Crushed . | . . . Highest Temperature 244 | . 244 3 Average Temperature 96 | . 97 3 Received Heat Transfer 207 | . 114 93 Siege Activations . | . . . Martial Activations . | . . . Shielding Activations . | . . . Robots Disrupted . | . . . Combat Hostiles . | . . . Robots Corrupted . | . . . Combat Hostiles . | . . . Parts Fried . | . . . Impact Corruptions . | . . . Robots Melted . | . . . Combat Hostiles . | . . . Parts Melted . | . . . Heat Transferred 481 | . 370 111 Parts Sabotaged . | . . . Parts Stolen . | . . . Parts Stripped . | . . . Power Chain Reactions . | . . . Alert | -11 -10 -10 ------- Run | Yrd Mat Sub Maximum Alert Level . | . . . Low Security (%) 100 | 100 100 . Level 1 . | . . . Level 2 . | . . . Level 3 . | . . . Level 4 . | . . . Level 5 . | . . . High Security . | . . . Max Security . | . . . Peak Influence 133 | 5 133 . Initial . | . . . Average 41 | 1 46 . Influence Increases 324 | 15 309 . Destroy 0b10 Robot/C 240 | . 240 . Destroy 0b10 Robot/NC 20 | 15 5 . Destroy Leader 40 | . 40 . Successful Hack 21 | . 21 . Destroy Structure 3 | . 3 . Influence Decreases 324 | 15 309 . Time Decay 253 | 15 238 . Lost Part 20 | . 20 . Purge Threat 51 | . 51 . Squads Dispatched 2 | . 2 . Investigation . | . . . Extermination . | . . . Reinforcement 2 | . 2 . Assault . | . . . Garrison . | . . . Intercept . | . . . Searches Triggered . | . . . Construction Impeded . | . . . Haulers Reinforced . | . . . Active Scanning Responses . | . . . Cargo Convoy Interrupts . | . . . Stealth | -11 -10 -10 --------- Run | Yrd Mat Sub Distress Signals 1 | . 1 . Communications Jammed . | . . . Distress Signals . | . . . Times Spotted 26 | . 22 4 Peak Tracking Total 9 | . 9 4 Tactical Retreats . | . . . Traps | -11 -10 -10 ------- Run | Yrd Mat Sub Traps Triggered 5 | . 4 1 Indirectly . | . . . Trap Hack Attempts . | . . . Triggered . | . . . Disarmed . | . . . Reprogrammed . | . . . Reused . | . . . Traps Extracted . | . . . Installed . | . . . Triggered . | . . . Machines | -11 -10 -10 ---------- Run | Yrd Mat Sub Machines Disabled . | . . . Max in Single Turn . | . . . Machines Repaired . | . . . Machines Dismantled . | . . . Machines Sabotaged . | . . . Overloaded Fab Kills . | . . . Hacking | -11 -10 -10 --------- Run | Yrd Mat Sub Machines Accessed 6 | . 6 . Terminals 5 | . 5 . Fabricators . | . . . Repair Stations 1 | . 1 . Recycling Units . | . . . Scanalyzers . | . . . Garrison Access . | . . . Total Hacks 14 | . 14 . Successful 10 | . 10 . Failed 4 | . 4 . Catastrophic 1 | . 1 . Database Lockouts . | . . . Manual 9 | . 9 . Terminals 12 | . 12 . Fabricators . | . . . Repair Stations 2 | . 2 . Recycling Units . | . . . Scanalyzers . | . . . Garrison Access . | . . . Terminal Hacks 5 | . 5 . Robot Analysis 1 | . 1 . Prototype ID Bank 1 | . 1 . Unreport Threat 2 | . 2 . Zone Layout 1 | . 1 . Fabricator Hacks . | . . . Repair Station Hacks 2 | . 2 . Scan Component 1 | . 1 . Repair 1 | . 1 . Recycling Unit Hacks . | . . . Scanalyzer . | . . . Garrison Access Hacks . | . . . Unauthorized Hacks 3 | . 3 . Terminals 3 | . 3 . Botnet 3 | . 3 . Fabricators . | . . . Repair Stations . | . . . Recycling Units . | . . . Scanalyzers . | . . . Garrison Access . | . . . Data Cores Recovered . | . . . Used . | . . . Hacking Detections 4 | . 4 . Full Trace Events . | . . . Feedback Events . | . . . Feedback Blocked . | . . . Robot Schematics Acquired . | . . . Robots Built . | . . . Authchips . | . . . Time . | . . . Total Robot Build Rating . | . . . Part Schematics Acquired . | . . . Parts Built . | . . . Authchips . | . . . Time . | . . . Total Part Build Rating . | . . . Parts Repaired 1 | . 1 . Time 26 | . 26 . Parts Recycled . | . . . Recycled Matter . | . . . Retrieved Matter . | . . . Retrieved Components . | . . . Parts Scanalyzed . | . . . Part Schematics Acquired . | . . . Parts Damaged . | . . . Bothacking | -11 -10 -10 ------------ Run | Yrd Mat Sub Used RIF Installer . | . . . Robots Hacked . | . . . Non-combat . | . . . Combat . | . . . Robot Hacks Applied . | . . . Relay Couplers Released . | . . . Fabnet Peak Effective % . | . . . Robots Rewired . | . . . Allies Hacked . | . . . Hacks Repelled . | . . . Allies | -11 -10 -10 -------- Run | Yrd Mat Sub Total Allies . | . . . Largest Group . | . . . Highest-Rated Group . | . . . Highest-Rated Ally . | . . . Total Orders . | . . . Ally Attacks . | . . . Total Damage . | . . . Kills . | . . . Allies Corrupted . | . . . Allies Melted . | . . . Intel | -11 -10 -10 ------- Run | Yrd Mat Sub Active Infowar (turns) 903 | 35 762 106 Structural 95 | . . 95 Seismic 808 | 35 762 11 Robot Analysis Total 1 | . 1 . Derelict Logs Recovered 1 | . . 1 Drone Launches . | . . . Drone Recoveries . | . . . Exploration | -11 -10 -10 ------------- Run | Yrd Mat Sub Turns Passed 956 | 88 762 106 Spaces Moved 694 | 49 599 46 Core . | . . . Treads 16 | . . 16 Legs 64 | 49 15 . Wheels 614 | . 584 30 Hover . | . . . Flight . | . . . Fastest Speed 90 | 120 90 105 Average Speed 107 | 120 103 151 Slowest Speed 240 | 120 145 240 Overloaded Moves . | . . . Propulsion Burnouts . | . . . Robots Hopped . | . . . Potential Cave-ins . | . . . Cave-ins Triggered . | . . . Exploration Rate (%) 36 | 4 99 7 Regions Visited 2 Branch Regions 1 Pre-discovered Areas . | . . . Known Exits Taken . | . . . Unknown Exits Taken 2 | 1 1 . Scrap Searched . | . . . Spaces Dug . | . . . Terrain Destroyed . | . . . Melee . | . . . Projectile . | . . . AOE . | . . . Terrain Rammed . | . . . Walls Destroyed . | . . . Machines Disabled . | . . . Actions | -11 -10 -10 --------- Run | Yrd Mat Sub Total 806 | 59 684 63 Wait 36 | . 36 . Move 692 | 48 598 46 Hop . | . . . Pick Up 9 | 1 8 . Fast Attach 4 | 1 3 . Attach 2 | . 1 1 Detach . | . . . Swap 5 | . 3 2 Drop 6 | . 5 1 Fire 51 | 9 29 13 Melee . | . . . Ram 1 | . 1 . Kick . | . . . Crush . | . . . Escape Stasis . | . . . Rewire . | . . . Trap . | . . . Miscellaneous . | . . . Route ------- -11/Scrapyard -10/Materials (discovered 5 exits: [*Mat x3] / [*Min] / [*Sub]) -10/Subcaves History --------- Turn | Location | Event 1 | -11/Scrapyard | Discovered new exit (range 3) 89 | -11/Scrapyard | Entered Materials 184 | -10/Materials | Discovered new exit (range 15) 308 | -10/Materials | Build established: Mutant 368 | -10/Materials | Discovered new exit (range 20) 628 | -10/Materials | Discovered new exit (range 10) 644 | -10/Materials | Discovered new exit (range 10) 706 | -10/Materials | Repaired Assault Rifle? 774 | -10/Materials | Discovered new exit (range 15) 851 | -10/Materials | Entered Subcaves 855 | -10/Subcaves | Learned Materials emergency access door positions 920 | -10/Subcaves | Ambushed by Subdwellers from Twisted Machinery 930 | -10/Subcaves | Core integrity fell below 50% 952 | -10/Subcaves | Core integrity fell below 20% 957 | -10/Subcaves | Destroyed by 6S-605(R) with Subdweller Laser Last Messages --------------- 00849_ System corrupted: Heat flow error (+172). LOCATION=UNKNOWN AMBIENT_HEAT=-10 GOAL=ESCAPE 00855_ Acquired derelict log, extracted data. Data stored: Materials emergency access points. 00883_ Triggered Shrapnel Trap. 00883_ An expanding cloud of shrapnel blasts out in all directions. 00883_ Wheel destroyed. 00887_ Dropped Com. Wheel. 00892_ Subatomizers dissect the Com. Wheel. 00920_ JI-BF7(R) emerges from the Twisted Machinery. 00933_ 4QK5MO HWD#IRHX5:6OP978PQVMSXWUN,YCER5 00945_ Particle Gun destroyed. 00945_ Lgt. Treads destroyed. 00947_ JI-BF7(R) destroyed. 00948_ System corrupted: Substantial component data lost. 00957_ Subatomizers dissect the Disposable Heat Sink. Map ----- +----------------------------------------------------+ | ?????????????????????????????????????????????????? | | ?????????????????????????????????????????????????? | | ?????????????????????????????????????????????????? | | ?????????????????????????????????????????????????? | | ?????????????????????????????????????????????????? | | ?????????????????????????????????????????????????? | | ?????????????????????????????????????????????????? | | ?????????????????????????????????????????????????? | | ?????????????????????????????????????????????????? | | ????????????????????????????????????????########## | | ???????????????????????????????????????########### | | ?????????????????????????????????????? ### #### ## | | ?????????????????????????????????????? ## ## ## | | ??????????????????????????????????????## # | | ??????????????????????????????????????## | | ??????????????????????????????????????### | | ??????????????????????????????????????#### | | ??????????????????????????????????????? ### | | ???????????????#""??????????????????????### | | ???????????????##" ??????????????????? ## ## | | ?????????????##### ?????????????????##### ### | | ?????????????## ## """#???????????####"## ## | | ????????????? RR #################" " | | ?????????????????## ;;##############"" ^ #### | | ?????????????????## " R ### " = ## | | ?????????????????## ""%@ # | | ?????????????????""""" " | | ??????????????????""""" " ### #" ##### | | ??????????????????""" ####### ############# | | ??????????????????"""######## #######??### | | ??????????????????##" #???## ## ##????????? | | ??????????????????"##????? ##### ##????????? | | ??????????????????????## ###### ##????????? | | ??????????????????????## ###?## ##????????? | | ??????????????????????## ????## ###????????? | | ??????????????????????### #???### ####????????? | | ??????????????????????#### ##???#######?????????? | | ???????????????????????#######?????####??????????? | | ????????????????????????#####????????????????????? | | ?????????????????????????????????????????????????? | | ?????????????????????????????????????????????????? | | ?????????????????????????????????????????????????? | | ?????????????????????????????????????????????????? | | ?????????????????????????????????????????????????? | | ?????????????????????????????????????????????????? | | ?????????????????????????????????????????????????? | | ?????????????????????????????????????????????????? | | ?????????????????????????????????????????????????? | | ?????????????????????????????????????????????????? | | ?????????????????????????????????????????????????? | +----------------------------------------------------+ Best States ------------- Heat Dissipation 25 Energy Generation 10 Energy Capacity 250 Matter Stores 300 Matter Capacity 300 Sight Range 16 Terrain Scan Density 10 Evasion (%) 55 Recoil Reduction 2 Item Schematics ----------------- None Robot Schematics ------------------ None Fabricated ------------ Nothing Repaired ---------- Assault Rifle | 16% | -10/Materials Alien Tech Used ----------------- None Achievements -------------- None Challenges ------------ None Game ------ Seed ExperimentalBackupStreamer Manual? 0 Play Time 00:08:17 Cumulative 211.0 hours Start 2025.05.17 @ 18:23:14 End 2025.05.17 @ 18:30:58 Sessions 1 Manual Loads 0 Difficulty Rogue Special Mode None Game No. 162 Rogue 162 Adventurer 0 Explorer 0 Win Type - Total 4 Types 2/0/1/1/0/0/0/0/0/0 Lore% 44 Gallery% 69 Achievement% 64 Wizard Run 0 Options --------- Layout 1 ASCII 0 Keyboard 1 Movement Numpad Keybinds 0 Fullscreen 1 Font 48/Smallcaps Map View 55x35 Zoom Use 0% Tactical HUD 1 Map Filters NONE Filters NONE Steam 1 RUN: f503b962-dd1c-49af-824d-5494d72d9cf5